fUSD/lending_fUSD_20251211
["ID","MTS","AMOUNT","RATE_DAILY","PERIOD"]
[398162511,1765411492249,155.05,0.00013699,2]
[398162570,1765411831654,-500.0,0.00017873,2]
[398162572,1765411831664,-302.0,0.00017873,2]
[398162574,1765411831673,-500.0,0.00018421,2]
[398162576,1765411831683,-1210.71128789,0.0002,7]
[398162577,1765411831694,-742.40765346,0.0002,7]
[398162578,1765411831706,-466.56400005,0.0002,7]
[398162579,1765411831717,-432.212994,0.0002,7]
[398162580,1765411831728,-107.1040646,0.0002,7]
[398162581,1765411831738,-155.05,0.00020187,2]
[398162582,1765411831748,-84.8306347,0.00020426,2]
[398162583,1765411831770,-415.1693653,0.00020426,2]
[398162584,1765411831780,-900.0,0.00020759,2]
[398162585,1765411831790,-500.0,0.00023691,2]
[398162586,1765411831800,-500.0,0.0002626,7]
[398162587,1765411831809,-687.12,0.000265,30]
[398162588,1765411831818,-112.50857841,0.00026676,2]
[398162589,1765411831830,-42.54142159,0.00026676,2]
[398162590,1765411831839,-1200.0,0.00028434,2]
[398162591,1765411831852,-500.0,0.00028435,7]
[398162592,1765411831861,-300.0,0.00029211,2]
[398162593,1765411831871,-154.69741441,0.00029435,59]
[398162594,1765411831880,-1463.44858161,0.00029535,2]
[398162595,1765411831890,-150.0,0.00029866,2]
[398162596,1765411831900,-1000.0,0.00029866,2]
[398162598,1765411831909,-87361.95,0.00029867,2]
[398162600,1765411831919,-1525.46077561,0.00030708,2]
[398162602,1765411831928,-345.53,0.00030808,2]
[398162604,1765411831938,-541.0,0.00030828,2]
[398162606,1765411831947,-154.69741436,0.00031073,63]
[398162608,1765411831957,-345.53,0.00031082,2]
[398162610,1765411831966,-345.53,0.00031356,2]
[398162612,1765411831975,-687.12,0.000316,120]
[398162614,1765411831985,-200.61,0.0003163,2]
[398162616,1765411831994,-500.0,0.00031791,7]
[398162618,1765411832003,-154.69741436,0.00032711,67]
[398162620,1765411832012,-155.05,0.00033165,2]
[398162621,1765411832021,-154.69741436,0.00034349,71]
[398162622,1765411832031,-500.0,0.00034358,7]
[398162623,1765411832040,-500.0,0.00035726,2]
[398162624,1765411832050,-154.69741436,0.00035986,75]
[398162625,1765411832059,-245.73,0.00036086,2]
[398162626,1765411832069,-3138.87,0.00036261,2]
[398162627,1765411832079,-5313.26,0.00036356,2]
[398162628,1765411832088,-687.12,0.000365,120]
[398162629,1765411832098,-686.7,0.00036856,30]
[398162630,1765411832107,-150.0,0.00037529,7]
[398162631,1765411832116,-150.0,0.00037529,7]
[398162632,1765411832126,-150.0,0.00037529,7]
[398162633,1765411832136,-150.0,0.00037529,7]
[398162634,1765411832145,-150.0,0.00037529,7]
[398162635,1765411832155,-150.0,0.00037529,7]
[398162636,1765411832164,-150.0,0.00037529,7]
[398162637,1765411832174,-150.0,0.00037529,7]
[398162638,1765411832183,-150.00000001,0.00037529,7]
[398162639,1765411832192,-245.95240702,0.00037529,7]
[398162640,1765411832202,-150.0,0.00037529,7]
[398162641,1765411832212,-154.69741436,0.00037624,79]
[398162642,1765411832222,-1500.0,0.00037734,120]
[398162643,1765411832231,-156.7335532,0.00037744,7]
[398162644,1765411832241,-150.0,0.00037789,7]
[398162645,1765411832251,-150.0,0.00037789,7]
[398162646,1765411832261,-1000.0,0.00037931,2]
[398162647,1765411832271,-150.0,0.0003805,7]
[398162648,1765411832281,-150.0,0.0003805,7]
[398162649,1765411832291,-8274.71,0.00038197,2]
[398162650,1765411832300,-256.63,0.00038218,2]
[398162651,1765411832310,-2666.794,0.00038309,51]
[398162652,1765411832320,-166.66,0.00038309,30]
[398162653,1765411832330,-178.419,0.00038309,51]
[398162654,1765411832344,-150.0,0.00038311,7]
[398162655,1765411832354,-150.0,0.00038311,7]
[398162656,1765411832363,-600.0,0.00038356,30]
[398162657,1765411832373,-150.0,0.00038571,7]
[398162658,1765411832382,-150.0,0.00038571,7]
[398162659,1765411832392,-150.0,0.00038571,7]
[398162660,1765411832401,-4763.0,0.0003873,2]
[398162661,1765411832410,-6515.0,0.0003873,2]
[398162662,1765411832420,-150.0,0.00038832,7]
[398162663,1765411832430,-150.0,0.00038832,7]
[398162664,1765411832440,-600.0,0.00038904,30]
[398162665,1765411832450,-150.0,0.00039092,7]
[398162666,1765411832459,-150.0,0.00039092,7]
[398162667,1765411832469,-166.66,0.00039116,30]
[398162668,1765411832478,-18650.03,0.00039186,2]
[398162669,1765411832488,-154.69741436,0.00039262,82]
[398162670,1765411832501,-150.0,0.00039353,7]
[398162671,1765411832510,-150.0,0.00039353,7]
[398162672,1765411832519,-600.0,0.00039452,30]
[398162673,1765411832533,-150.0,0.00039614,7]
[398162674,1765411832543,-150.0,0.00039614,7]
[398162675,1765411832553,-150.0,0.00039614,7]
[398162676,1765411832564,-150.0,0.00039614,7]
[398162677,1765411832574,-150.0,0.00039614,7]
[398162678,1765411832584,-150.96,0.00039643,2]
[398162679,1765411832593,-150.57,0.00039644,2]
[398162680,1765411832604,-155.05,0.00039654,2]
[398162681,1765411832614,-177.18,0.00039698,2]
[398162682,1765411832624,-928.0,0.00039731,2]
[398162683,1765411832633,-150.0,0.00039874,7]
[398162684,1765411832643,-150.0,0.00039874,7]
[398162685,1765411832653,-150.0,0.00039919,120]
[398162686,1765411832663,-166.66,0.00039922,30]
[398162687,1765411832673,-600.0,0.0004,30]
[398162688,1765411832682,-3500.0,0.0004,120]
[398162689,1765411832692,-928.0,0.00040027,7]
[398162690,1765411832702,-168.0,0.00040132,2]
[398162691,1765411832711,-150.0,0.00040135,7]
[398162692,1765411832721,-150.0,0.00040135,7]
[398162693,1765411832730,-1471.83,0.00040166,2]
[398162694,1765411832744,-150.0,0.00040396,7]
[398162695,1765411832754,-150.0,0.00040396,7]
[398162696,1765411832763,-999.0,0.000404,3]
[398162697,1765411832772,-2619.79614268,0.00040449,7]
[398162698,1765411832783,-150.0,0.00040449,7]
[398162699,1765411832792,-600.0,0.00040548,30]
[398162700,1765411832803,-775.7766207,0.00040549,15]
[398162701,1765411832812,-151.77141743,0.00040586,7]
[398162702,1765411832822,-928.0,0.00040649,7]
[398162703,1765411832831,-168.0,0.00040653,7]
[398162704,1765411832841,-150.0,0.00040656,7]
[398162705,1765411832850,-150.0,0.00040656,7]
[398162706,1765411832860,-150.0,0.00040656,7]
[398162707,1765411832869,-775.77662064,0.00040667,15]
[398162708,1765411832879,-250.34,0.0004069,2]
[398162709,1765411832889,-166.66,0.00040729,30]
[398162710,1765411832899,-168.0,0.00040744,2]
[398162711,1765411832908,-168.0,0.00040763,2]
[398162712,1765411832918,-775.77662064,0.00040785,15]
[398162713,1765411832928,-168.0,0.00040858,120]
[398162714,1765411832940,-154.69741436,0.000409,86]
[398162715,1765411832949,-775.77662064,0.00040903,15]
[398162716,1765411832959,-150.0,0.00040917,7]
[398162717,1765411832968,-150.0,0.00040917,7]
[398162718,1765411832978,-21096.7762522,0.0004099,7]
[398162719,1765411832987,-928.0,0.00040998,120]
[398162720,1765411832997,-1000.0,0.00041,30]
[398162721,1765411833007,-1000.0,0.00041,120]
[398162722,1765411833016,-2023.2736351,0.00041,120]
[398162723,1765411833027,-19283.0,0.00041,120]
[398162724,1765411833037,-1000.0,0.00041,120]
[398162725,1765411833047,-1325.53146832,0.00041,110]
[398162726,1765411833061,-2059.73097029,0.00041,110]
[398162727,1765411833072,-2205.73756139,0.00041,110]
[398162728,1765411833082,-730.25,0.00041002,30]
[398162729,1765411833091,-686.97,0.00041013,30]
[398162730,1765411833101,-775.77662064,0.00041021,15]
[398162731,1765411833111,-500.0,0.00041095,120]
[398162732,1765411833120,-600.0,0.00041096,30]
[398162733,1765411833133,-500.0,0.00041096,10]
[398162734,1765411833143,-206.36769056,0.00041096,120]
[398162735,1765411833153,-1000.0,0.00041096,3]
[398162736,1765411833162,-775.77662064,0.0004114,15]
[398162737,1765411833172,-168.0,0.00041169,120]
[398162738,1765411833181,-150.0,0.00041177,30]
[398162739,1765411833191,-150.0,0.00041177,30]
[398162740,1765411833201,-6679.449,0.00041192,2]
[398162741,1765411833211,-1000.0,0.00041233,3]
[398162742,1765411833221,-775.77662064,0.00041258,15]
[398162743,1765411833231,-1000.0,0.00041292,2]
[398162744,1765411833240,-1246.3905245,0.00041292,2]
[398162745,1765411833257,-885.27790424,0.00041292,2]
[398162746,1765411833269,-1958.52427126,0.00041292,2]
[398162747,1765411833279,-1548.58225176,0.00041292,2]
[398162748,1765411833291,-336.44827198,0.00041292,2]
[398162749,1765411833304,-765.97169976,0.00041292,2]
[398162750,1765411833315,-797.2953444,0.00041292,2]
[398162755,1765411837703,-563.0,0.0003873,2]
[398162756,1765411837713,-0.94852852,0.00041292,2]
[398162757,1765411837891,-11774.6051068,0.00041292,2]
[398162758,1765411837903,-656.1195813,0.00041292,2]
[398162759,1765411837915,-606.25415724,0.00041292,2]
[398162761,1765411838092,-6301.68645824,0.00041292,2]
[398162763,1765411838102,-1000.0,0.00041292,2]
[398162765,1765411838112,-2500.0,0.00041292,2]
[398162767,1765411838121,-1345.7,0.00041301,7]
[398162768,1765411838131,-500.0,0.00041369,120]
[398162769,1765411838140,-1000.0,0.0004137,3]
[398162770,1765411838149,-775.77662064,0.00041376,15]
[398162771,1765411838159,-4368.34561227,0.00041392,15]
[398162772,1765411838169,-150.0,0.000414,60]
[398162773,1765411838178,-4368.34561224,0.00041417,15]
[398162774,1765411838188,-1068.0,0.00041427,2]
[398162775,1765411838198,-150.0,0.00041438,30]
[398162776,1765411838207,-150.0,0.00041438,30]
[398162777,1765411838217,-4368.34561224,0.00041441,15]
[398162778,1765411838227,-41.22556891,0.00041466,15]
[398162781,1765411839980,-4327.12004333,0.00041466,15]
[398162782,1765411839991,-236.44,0.0004148,2]
[398162783,1765411840001,-236.44,0.0004149,2]
[398162784,1765411840010,-76027.0797681,0.0004149,4]
[398162785,1765411840020,-236.44,0.0004149,2]
[398162786,1765411840029,-236.44,0.0004149,2]
[398162787,1765411840039,-4368.34561224,0.0004149,15]
[398162788,1765411840050,-2000.0,0.00041492,3]
[398162789,1765411840060,-150.0,0.00041492,2]
[398162790,1765411840070,-150.0,0.00041492,2]
[398162791,1765411840080,-611.0,0.00041492,2]
[398162792,1765411840090,-614.0,0.00041492,2]
[398162793,1765411840100,-1260.0,0.00041492,2]
[398162794,1765411840110,-775.77662064,0.00041494,15]
[398162795,1765411840120,-151.0,0.00041497,14]
[398162796,1765411840129,-902.749,0.00041499,2]
[398162797,1765411840139,-2815.81776919,0.000415,4]
[398162798,1765411840149,-5000.0,0.000415,120]
[398162799,1765411840159,-155555.0,0.000415,120]
[398162800,1765411840169,-319.35483104,0.000415,3]
[398162801,1765411840179,-1000.0,0.00041507,3]
[398162802,1765411840340,-511.0,0.00041509,2]
[398162803,1765411840351,-2815.81776919,0.00041512,4]
[398162804,1765411840360,-4368.34561224,0.00041515,15]
[398162805,1765411840370,-319.354831,0.00041519,3]
[398162806,1765411840379,-2815.81776919,0.00041525,4]
[398162807,1765411840389,-28158.1776919,0.00041526,4]
[398162808,1765411840398,-236.44,0.00041526,2]
[398162809,1765411840407,-166.66,0.00041535,30]
[398162811,1765411840417,-500.0,0.00041536,60]
[398162813,1765411840426,-500.0,0.00041536,60]
[398162814,1765411840435,-500.0,0.00041536,60]
[398162815,1765411840444,-500.0,0.00041536,60]
[398162816,1765411840454,-500.0,0.00041536,60]
[398162817,1765411840463,-500.0,0.00041536,60]
[398162818,1765411840473,-500.0,0.00041536,60]
[398162819,1765411840483,-500.0,0.00041536,60]
[398162820,1765411840493,-500.0,0.00041536,60]
[398162821,1765411840507,-500.0,0.00041536,60]
[398162822,1765411840516,-500.0,0.00041536,60]
[398162823,1765411840525,-500.0,0.00041536,60]
[398162824,1765411840536,-500.0,0.00041536,60]
[398162825,1765411840546,-500.0,0.00041536,60]
[398162826,1765411840556,-500.0,0.00041536,60]
[398162827,1765411840565,-500.0,0.00041536,60]
[398162828,1765411840576,-500.0,0.00041536,60]
[398162829,1765411840586,-500.0,0.00041536,60]
[398162830,1765411840595,-500.0,0.00041536,60]
[398162831,1765411840605,-500.0,0.00041536,60]
[398162832,1765411840615,-500.0,0.00041536,60]
[398162833,1765411840625,-500.0,0.00041536,60]
[398162834,1765411840634,-500.0,0.00041536,60]
[398162835,1765411840644,-500.0,0.00041536,60]
[398162836,1765411840653,-187.63723725,0.00041536,60]
[398162837,1765411840663,-500.0,0.00041536,60]
[398162838,1765411840672,-500.0,0.00041536,60]
[398162839,1765411840681,-500.0,0.00041536,60]
[398162840,1765411840690,-500.0,0.00041536,60]
[398162841,1765411840699,-500.0,0.00041536,60]
[398162842,1765411840709,-500.0,0.00041536,60]
[398162843,1765411840718,-500.0,0.00041536,60]
[398162844,1765411840728,-500.0,0.00041536,60]
[398162845,1765411840738,-500.0,0.00041536,60]
[398162846,1765411840747,-409.06842245,0.00041536,60]
[398162847,1765411840757,-500.0,0.00041536,60]
[398162848,1765411840766,-510.9486006,0.00041536,60]
[398162849,1765411840776,-500.0,0.00041536,60]
[398162850,1765411840785,-500.0,0.00041536,60]
[398162851,1765411840795,-500.0,0.00041536,60]
[398162852,1765411840806,-500.0,0.00041536,60]
[398162853,1765411840815,-500.0,0.00041536,60]
[398162854,1765411840824,-181.31402153,0.00041536,60]
[398162855,1765411840834,-500.0,0.00041536,60]
[398162856,1765411840844,-500.0,0.00041536,60]
[398162857,1765411840853,-500.0,0.00041536,60]
[398162858,1765411840862,-500.0,0.00041536,60]
[398162859,1765411840871,-618.26617197,0.00041536,60]
[398162860,1765411840881,-500.0,0.00041536,60]
[398162861,1765411840890,-500.0,0.00041536,60]
[398162862,1765411840899,-500.0,0.00041536,60]
[398162863,1765411840908,-500.0,0.00041536,60]
[398162864,1765411840916,-501.20093261,0.00041536,60]
[398162865,1765411840925,-500.0,0.00041536,60]
[398162866,1765411840934,-500.0,0.00041536,60]
[398162867,1765411840943,-500.0,0.00041536,60]
[398162868,1765411840952,-500.0,0.00041536,60]
[398162869,1765411840962,-500.0,0.00041536,60]
[398162870,1765411840971,-500.0,0.00041536,60]
[398162871,1765411840980,-500.0,0.00041536,60]
[398162872,1765411840989,-500.0,0.00041536,60]
[398162873,1765411840998,-500.0,0.00041536,60]
[398162874,1765411841007,-500.0,0.00041536,60]
[398162875,1765411841016,-500.0,0.00041536,60]
[398162876,1765411841025,-500.0,0.00041536,60]
[398162877,1765411841034,-500.0,0.00041536,60]
[398162878,1765411841043,-500.0,0.00041536,60]
[398162879,1765411841053,-500.0,0.00041536,60]
[398162880,1765411841062,-500.0,0.00041536,60]
[398162881,1765411841071,-500.0,0.00041536,60]
[398162882,1765411841079,-500.0,0.00041536,60]
[398162883,1765411841088,-500.0,0.00041536,60]
[398162884,1765411841097,-500.0,0.00041536,60]
[398162885,1765411841106,-500.0,0.00041536,60]
[398162886,1765411841115,-500.0,0.00041536,60]
[398162887,1765411841124,-500.0,0.00041536,60]
[398162888,1765411841133,-500.0,0.00041536,60]
[398162889,1765411841143,-500.0,0.00041536,60]
[398162890,1765411841152,-500.0,0.00041536,60]
[398162891,1765411841162,-500.0,0.00041536,60]
[398162892,1765411841172,-500.0,0.00041536,60]
[398162893,1765411841181,-500.0,0.00041536,60]
[398162894,1765411841190,-500.0,0.00041536,60]
[398162895,1765411841199,-500.0,0.00041536,60]
[398162896,1765411841208,-500.0,0.00041536,60]
[398162897,1765411841218,-500.0,0.00041536,60]
[398162898,1765411841228,-154.14062291,0.00041536,60]
[398162899,1765411841238,-500.0,0.00041536,60]
[398162900,1765411841247,-500.0,0.00041536,60]
[398162901,1765411841256,-500.0,0.00041536,60]
[398162902,1765411841266,-500.0,0.00041536,60]
[398162903,1765411841275,-500.0,0.00041536,60]
[398162904,1765411841284,-188.5947978,0.00041536,60]
[398162905,1765411841293,-500.0,0.00041536,60]
[398162906,1765411841304,-500.0,0.00041536,60]
[398162907,1765411841314,-500.0,0.00041536,60]
[398162908,1765411841323,-500.0,0.00041536,60]
[398162909,1765411841332,-500.0,0.00041536,60]
[398162910,1765411841341,-500.0,0.00041536,7]
[398162911,1765411841351,-500.0,0.00041536,60]
[398162912,1765411841360,-500.0,0.00041536,60]
[398162913,1765411841369,-500.0,0.00041536,60]
[398162914,1765411841379,-500.0,0.00041536,60]
[398162915,1765411841387,-500.0,0.00041536,60]
[398162916,1765411841396,-500.0,0.00041536,60]
[398162917,1765411841405,-500.0,0.00041536,60]
[398162918,1765411841414,-500.0,0.00041536,60]
[398162919,1765411841423,-502.7571832,0.00041536,60]
[398162920,1765411841432,-500.0,0.00041536,25]
[398162921,1765411841441,-501.00376209,0.00041536,60]
[398162922,1765411841451,-500.0,0.00041536,60]
[398162923,1765411841460,-500.0,0.00041536,60]
[398162924,1765411841469,-500.0,0.00041536,60]
[398162925,1765411841479,-279.3666012,0.00041536,60]
[398162926,1765411841488,-153.26,0.00041536,60]
[398162927,1765411841503,-500.0,0.00041536,60]
[398162928,1765411841516,-500.0,0.00041536,60]
[398162929,1765411841526,-500.0,0.00041536,60]
[398162930,1765411841536,-500.0,0.00041536,60]
[398162931,1765411841545,-500.0,0.00041536,60]
[398162932,1765411841555,-500.0,0.00041536,60]
[398162933,1765411841564,-500.0,0.00041536,30]
[398162934,1765411841580,-500.0,0.00041536,60]
[398162935,1765411841591,-500.0,0.00041536,60]
[398162936,1765411841601,-539.54428358,0.00041536,60]
[398162937,1765411841611,-513.26425,0.00041536,60]
[398162938,1765411841620,-500.0,0.00041536,60]
[398162939,1765411841630,-500.0,0.00041536,60]
[398162940,1765411841639,-500.0,0.00041536,60]
[398162941,1765411841648,-575.31657418,0.00041536,60]
[398162942,1765411841658,-500.0,0.00041536,60]
[398162943,1765411841667,-500.0,0.00041536,60]
[398162944,1765411841676,-500.0,0.00041536,60]
[398162945,1765411841685,-500.0,0.00041536,60]
[398162946,1765411841695,-500.0,0.00041536,60]
[398162947,1765411841703,-500.0,0.00041536,60]
[398162948,1765411841712,-500.0,0.00041536,60]
[398162949,1765411841721,-500.0,0.00041536,60]
[398162950,1765411841730,-500.0,0.00041536,60]
[398162951,1765411841739,-500.0,0.00041536,60]
[398162952,1765411841748,-530.71,0.00041536,60]
[398162953,1765411841757,-500.0,0.00041536,60]
[398162954,1765411841766,-500.0,0.00041536,60]
[398162955,1765411841775,-500.0,0.00041536,60]
[398162956,1765411841784,-500.0,0.00041536,2]
[398162957,1765411841793,-500.0,0.00041536,60]
[398162958,1765411841803,-500.0,0.00041536,60]
[398162959,1765411841812,-500.0,0.00041536,60]
[398162960,1765411841822,-500.0,0.00041536,60]
[398162961,1765411841831,-500.0,0.00041536,60]
[398162962,1765411841840,-500.0,0.00041536,60]
[398162963,1765411841849,-500.0,0.00041536,60]
[398162964,1765411841858,-500.0,0.00041536,60]
[398162965,1765411841868,-500.0,0.00041536,60]
[398162966,1765411841877,-500.0,0.00041536,60]
[398162967,1765411841887,-500.0,0.00041536,60]
[398162968,1765411841896,-500.0,0.00041536,60]
[398162969,1765411841906,-500.0,0.00041536,60]
[398162970,1765411841916,-500.0,0.00041536,60]
[398162971,1765411841927,-500.0,0.00041536,60]
[398162972,1765411841936,-500.0,0.00041536,60]
[398162973,1765411841946,-500.0,0.00041536,60]
[398162974,1765411841955,-500.0,0.00041536,60]
[398162975,1765411841964,-500.0,0.00041536,60]
[398162976,1765411841974,-500.0,0.00041536,60]
[398162977,1765411841983,-500.0,0.00041536,60]
[398162978,1765411841992,-500.0,0.00041536,60]
[398162979,1765411842002,-500.0,0.00041536,60]
[398162980,1765411842011,-500.0,0.00041536,60]
[398162981,1765411842021,-500.0,0.00041536,60]
[398162982,1765411842030,-500.0,0.00041536,60]
[398162983,1765411842039,-500.0,0.00041536,60]
[398162984,1765411842050,-500.0,0.00041536,60]
[398162985,1765411842059,-500.0,0.00041536,60]
[398162986,1765411842069,-500.0,0.00041536,60]
[398162987,1765411842079,-500.0,0.00041536,60]
[398162988,1765411842089,-500.0,0.00041536,60]
[398162989,1765411842099,-500.0,0.00041536,60]
[398162990,1765411842108,-500.0,0.00041536,60]
[398162991,1765411842118,-500.0,0.00041536,60]
[398162992,1765411842128,-500.0,0.00041536,60]
[398162993,1765411842138,-500.0,0.00041536,60]
[398162994,1765411842148,-319.354831,0.00041538,3]
[398162995,1765411842158,-4368.34561224,0.00041539,15]
[398162996,1765411842168,-688.56,0.00041542,30]
[398162997,1765411842177,-319.354831,0.00041557,4]
[398162998,1765411842186,-4368.34561224,0.00041564,15]
[398162999,1765411842196,-166.66,0.00041573,2]
[398163000,1765411842205,-319.354831,0.00041575,4]
[398163001,1765411842215,-711.57,0.00041576,30]
[398163002,1765411842224,-1013.86478032,0.00041589,120]
[398163003,1765411842236,-564.1745337,0.0004159,30]
[398163004,1765411842245,-150.86,0.0004159,2]
[398163005,1765411842255,-150.86,0.0004159,2]
[398163006,1765411842265,-483.0,0.00041592,2]
[398163007,1765411842274,-319.354831,0.00041594,4]
[398163008,1765411842283,-151.0,0.00041597,14]
[398163009,1765411842297,-151.0,0.00041597,14]
[398163010,1765411842307,-8236.42604674,0.00041599,2]
[398163011,1765411842316,-200.0,0.00041599,120]
[398163012,1765411842326,-500.0,0.00041599,120]
[398163013,1765411842335,-200.0,0.00041599,120]
[398163014,1765411842345,-500.0,0.00041599,120]
[398163015,1765411842354,-500.0,0.00041599,120]
[398163016,1765411842364,-500.0,0.00041599,120]
[398163017,1765411842373,-151.0,0.00041599,120]
[398163018,1765411842382,-500.0,0.00041599,120]
[398163019,1765411842391,-151.0,0.00041599,120]
[398163020,1765411842401,-500.0,0.00041599,120]
[398163021,1765411842410,-151.0,0.00041599,120]
[398163022,1765411842419,-500.0,0.00041599,120]
[398163023,1765411842428,-151.0,0.00041599,120]
[398163024,1765411842438,-500.0,0.00041599,120]
[398163025,1765411842448,-151.0,0.00041599,120]
[398163026,1765411842458,-500.0,0.00041599,120]
[398163027,1765411842467,-151.0,0.00041599,120]
[398163028,1765411842476,-500.0,0.00041599,120]
[398163029,1765411842486,-500.0,0.00041599,120]
[398163030,1765411842502,-500.0,0.00041599,120]
[398163031,1765411842511,-151.0,0.00041599,120]
[398163032,1765411842520,-500.0,0.00041599,120]
[398163033,1765411842529,-500.0,0.00041599,120]
[398163034,1765411842540,-239.75520452,0.00041599,120]
[398163035,1765411842549,-151.0,0.00041599,120]
[398163036,1765411842559,-567.0,0.00041599,120]
[398163037,1765411842568,-500.0,0.00041599,120]
[398163038,1765411842580,-500.0,0.00041599,120]
[398163039,1765411842589,-567.0,0.00041599,120]
[398163040,1765411842598,-151.0,0.00041599,120]
[398163041,1765411842607,-500.0,0.00041599,120]
[398163042,1765411842618,-500.0,0.00041599,120]
[398163043,1765411842627,-567.0,0.00041599,120]
[398163044,1765411842641,-151.0,0.00041599,120]
[398163045,1765411842650,-500.0,0.00041599,120]
[398163046,1765411842660,-500.0,0.00041599,120]
[398163047,1765411842668,-567.0,0.00041599,120]
[398163048,1765411842678,-151.0,0.00041599,120]
[398163049,1765411842688,-500.0,0.00041599,120]
[398163050,1765411842698,-500.0,0.00041599,120]
[398163051,1765411842715,-151.0,0.00041599,120]
[398163052,1765411842735,-567.0,0.00041599,120]
[398163053,1765411842750,-500.0,0.00041599,120]
[398163054,1765411842759,-500.0,0.00041599,120]
[398163055,1765411842769,-567.0,0.00041599,120]
[398163056,1765411842778,-151.0,0.00041599,120]
[398163058,1765411842787,-500.0,0.00041599,120]
[398163060,1765411842796,-500.0,0.00041599,120]
[398163062,1765411842806,-567.0,0.00041599,120]
[398163063,1765411842815,-151.0,0.00041599,120]
[398163064,1765411842824,-500.0,0.00041599,120]
[398163065,1765411842832,-500.0,0.00041599,120]
[398163066,1765411842841,-567.0,0.00041599,120]
[398163067,1765411842851,-151.0,0.00041599,120]
[398163068,1765411842859,-500.0,0.00041599,120]
[398163069,1765411842869,-500.0,0.00041599,120]
[398163070,1765411842878,-567.0,0.00041599,120]
[398163071,1765411842887,-500.0,0.00041599,120]
[398163072,1765411842897,-151.0,0.00041599,120]
[398163073,1765411842908,-500.0,0.00041599,120]
[398163074,1765411842917,-567.0,0.00041599,120]
[398163075,1765411842927,-151.0,0.00041599,120]
[398163076,1765411842936,-500.0,0.00041599,120]
[398163077,1765411842945,-500.0,0.00041599,120]
[398163078,1765411842955,-485.0,0.00041599,120]
[398163079,1765411842964,-151.0,0.00041599,120]
[398163081,1765411842974,-500.0,0.00041599,120]
[398163083,1765411842983,-151.0,0.00041599,120]
[398163084,1765411842992,-500.0,0.00041599,120]
[398163085,1765411843001,-500.0,0.00041599,120]
[398163086,1765411843011,-151.0,0.00041599,120]
[398163087,1765411843020,-500.0,0.00041599,120]
[398163088,1765411843030,-500.0,0.00041599,120]
[398163089,1765411843040,-500.0,0.00041599,120]
[398163090,1765411843050,-500.0,0.00041599,120]
[398163091,1765411843059,-5527.0,0.00041599,7]
[398163092,1765411843068,-4084.52766028,0.000416,33]
[398163093,1765411843078,-3711.7316986,0.000416,2]
[398163094,1765411843087,-200.0,0.000416,7]
[398163095,1765411843096,-229.03,0.000416,120]
[398163096,1765411843105,-500.0,0.000416,60]
[398163097,1765411843115,-500.0,0.000416,60]
[398163098,1765411843124,-500.0,0.000416,60]
[398163099,1765411843133,-345.55934012,0.000416,60]
[398163100,1765411843142,-500.0,0.000416,60]